[Event "*** SCC Grand Prix: Titled Tuesday Blitz"]
[Site "Chess.com"]
[Date "2020.06.02"]
[Round "3"]
[White "ChessAintFun"]
[Black "RestartingChess"]
[Result "0-1"]
[WhiteElo "2645"]
[BlackElo "2494"]
[TimeControl "180+1"]
[EndTime "10:29:58 PDT"]
[Termination "RestartingChess won by resignation"]

1. e4 {[%clk 0:03:00.9]} 1... Nf6 {[%clk 0:02:58.5]} 2. e5 {[%clk 0:03:00.8]}
2... Nd5 {[%clk 0:02:59.1]} 3. d4 {[%clk 0:03:01.2]} 3... d6 {[%clk 0:02:59.5]}
4. Nf3 {[%clk 0:03:01.8]} 4... g6 {[%clk 0:02:59.2]} 5. Be2 {[%clk 0:02:57.1]}
5... Bg7 {[%clk 0:02:59.2]} 6. O-O {[%clk 0:02:55.7]} 6... O-O {[%clk
0:02:59.4]} 7. h3 {[%clk 0:02:55.7]} 7... dxe5 {[%clk 0:02:59.5]} 8. dxe5 {[%clk
0:02:56.1]} 8... Nc6 {[%clk 0:02:56.7]} 9. Re1 {[%clk 0:02:42.1]} 9... Bf5
{[%clk 0:02:20.4]} 10. Bd3 {[%clk 0:02:10.6]} 10... Ndb4 {[%clk 0:01:45.4]} 11.
Bxf5 {[%clk 0:01:12.5]} 11... Qxd1 {[%clk 0:01:43.7]} 12. Rxd1 {[%clk
0:01:13.4]} 12... gxf5 {[%clk 0:01:44.6]} 13. Na3 {[%clk 0:01:11.4]} 13... Nxe5
{[%clk 0:01:39.8]} 14. Nxe5 {[%clk 0:00:53.3]} 14... Bxe5 {[%clk 0:01:39]} 15.
c3 {[%clk 0:00:53.8]} 15... Nc6 {[%clk 0:01:34]} 16. Nc4 {[%clk 0:00:53.9]}
16... Bd6 {[%clk 0:01:33.4]} 17. Nxd6 {[%clk 0:00:44.6]} 17... cxd6 {[%clk
0:01:32.7]} 18. Rd5 {[%clk 0:00:44.7]} 18... e5 {[%clk 0:01:19]} 19. Rxd6 {[%clk
0:00:35.3]} 19... Rad8 {[%clk 0:01:18.4]} 20. Rxd8 {[%clk 0:00:34.5]} 20... Rxd8
{[%clk 0:01:19.3]} 21. Bg5 {[%clk 0:00:34.2]} 21... Rd6 {[%clk 0:01:12.1]} 22.
Kf1 {[%clk 0:00:34.3]} 22... f6 {[%clk 0:01:11.8]} 23. Be3 {[%clk 0:00:34.1]}
23... f4 {[%clk 0:01:10]} 24. Bc5 {[%clk 0:00:33.3]} 24... Rd5 {[%clk
0:01:10.1]} 25. Ba3 {[%clk 0:00:27.6]} 25... Na5 {[%clk 0:01:06.7]} 26. b3
{[%clk 0:00:21.8]} 26... Rd2 {[%clk 0:00:49.7]} 27. Ke1 {[%clk 0:00:21.8]} 27...
Rc2 {[%clk 0:00:47.5]} 28. c4 {[%clk 0:00:22.4]} 28... Nc6 {[%clk 0:00:46.5]}
29. Bc5 {[%clk 0:00:21.4]} 29... b6 {[%clk 0:00:44]} 30. Bd6 {[%clk 0:00:19.8]}
30... Nd4 {[%clk 0:00:42.4]} 31. Kf1 {[%clk 0:00:16.3]} 31... Kf7 {[%clk
0:00:40]} 32. Bb8 {[%clk 0:00:16]} 32... Nc6 {[%clk 0:00:39]} 33. Bd6 {[%clk
0:00:13.7]} 33... Ke6 {[%clk 0:00:39]} 34. Bf8 {[%clk 0:00:13.9]} 34... Nd4
{[%clk 0:00:38.3]} 35. h4 {[%clk 0:00:12]} 35... e4 {[%clk 0:00:32.9]} 36. h5
{[%clk 0:00:10.4]} 36... e3 {[%clk 0:00:32.5]} 37. fxe3 {[%clk 0:00:10.4]} 37...
fxe3 {[%clk 0:00:31.7]} 38. Re1 {[%clk 0:00:08.4]} 38... e2+ {[%clk 0:00:25.3]}
39. Kf2 {[%clk 0:00:08.9]} 39... Rxa2 {[%clk 0:00:25.5]} 40. c5 {[%clk
0:00:09.4]} 40... bxc5 {[%clk 0:00:19.5]} 41. Bxc5 {[%clk 0:00:09.2]} 41... Nxb3
{[%clk 0:00:19.9]} 42. Be3 {[%clk 0:00:09.2]} 42... Ke5 {[%clk 0:00:15]} 43.
Rxe2 {[%clk 0:00:08.4]} 43... Rxe2+ {[%clk 0:00:15.3]} 44. Kxe2 {[%clk
0:00:09.3]} 44... Nd4+ {[%clk 0:00:16.2]} 45. Kd3 {[%clk 0:00:10.2]} 45... Nc6
{[%clk 0:00:12.8]} 46. g4 {[%clk 0:00:10.4]} 46... a5 {[%clk 0:00:12.8]} 47. Kc4
{[%clk 0:00:10.5]} 47... Ke4 {[%clk 0:00:11]} 48. Bb6 {[%clk 0:00:08.9]} 48...
Ne5+ {[%clk 0:00:10.6]} 49. Kc3 {[%clk 0:00:09.5]} 49... Nxg4 {[%clk 0:00:11.3]}
50. Bxa5 {[%clk 0:00:10]} 50... Kf5 {[%clk 0:00:11.4]} 51. Kd3 {[%clk
0:00:08.7]} 51... Kg5 {[%clk 0:00:11.2]} 52. Ke4 {[%clk 0:00:09.6]} 52... f5+
{[%clk 0:00:10.4]} 53. Kf3 {[%clk 0:00:09.7]} 53... Kxh5 {[%clk 0:00:10.9]} 54.
Bd8 {[%clk 0:00:10.6]} 54... Kg6 {[%clk 0:00:11.1]} 55. Kf4 {[%clk 0:00:11.1]}
55... Nf6 {[%clk 0:00:10.5]} 56. Kg3 {[%clk 0:00:10.2]} 56... Kg5 {[%clk
0:00:10.1]} 57. Be7 {[%clk 0:00:09.9]} 57... h5 {[%clk 0:00:09.9]} 58. Bd8
{[%clk 0:00:10.2]} 58... h4+ {[%clk 0:00:10.3]} 59. Kh3 {[%clk 0:00:10.7]} 59...
f4 {[%clk 0:00:10.7]} 60. Bxf6+ {[%clk 0:00:11]} 60... Kxf6 {[%clk 0:00:11.1]}
61. Kxh4 {[%clk 0:00:11.7]} 61... Ke5 {[%clk 0:00:11.6]} 62. Kh3 {[%clk
0:00:11.7]} 62... Ke4 {[%clk 0:00:11.5]} 63. Kg2 {[%clk 0:00:06.4]} 63... Ke3
{[%clk 0:00:12]} 64. Kf1 {[%clk 0:00:06.7]} 64... Kf3 {[%clk 0:00:12.2]} 65. Kg1
{[%clk 0:00:07.1]} 65... Ke2 {[%clk 0:00:12.5]} 66. Kg2 {[%clk 0:00:07.4]} 66...
f3+ {[%clk 0:00:13.4]} 0-1

[Event "*** SCC Grand Prix: Titled Tuesday Blitz"]
[Site "Chess.com"]
[Date "2020.06.02"]
[Round "3"]
[White "Thipsay"]
[Black "Baron_von_Koenig"]
[Result "1-0"]
[WhiteElo "2466"]
[BlackElo "2448"]
[TimeControl "180+1"]
[EndTime "10:30:00 PDT"]
[Termination "Thipsay won by resignation"]

1. e4 {[%clk 0:03:00.9]} 1... d5 {[%clk 0:02:59.4]} 2. exd5 {[%clk 0:03:00.3]}
2... Qxd5 {[%clk 0:02:59.9]} 3. Nc3 {[%clk 0:03:00.5]} 3... Qd6 {[%clk
0:03:00.4]} 4. d4 {[%clk 0:03:00.2]} 4... Nf6 {[%clk 0:03:00.7]} 5. Nf3 {[%clk
0:02:56]} 5... a6 {[%clk 0:03:00.8]} 6. Bc4 {[%clk 0:02:49.2]} 6... b5 {[%clk
0:02:59.8]} 7. Bb3 {[%clk 0:02:46.3]} 7... Bb7 {[%clk 0:02:59.3]} 8. O-O {[%clk
0:02:39.2]} 8... c5 {[%clk 0:02:59.1]} 9. dxc5 {[%clk 0:02:38.1]} 9... Qxd1
{[%clk 0:02:58.7]} 10. Rxd1 {[%clk 0:02:36]} 10... e6 {[%clk 0:02:59.2]} 11. Be3
{[%clk 0:02:28]} 11... Nbd7 {[%clk 0:02:58]} 12. c6 {[%clk 0:02:23.3]} 12...
Bxc6 {[%clk 0:02:57.4]} 13. Nd4 {[%clk 0:02:23.5]} 13... Bb7 {[%clk 0:02:54.1]}
14. a4 {[%clk 0:02:23.5]} 14... b4 {[%clk 0:02:53.7]} 15. Nce2 {[%clk
0:02:23.3]} 15... Be7 {[%clk 0:02:41.6]} 16. f3 {[%clk 0:02:22.2]} 16... O-O
{[%clk 0:02:40.6]} 17. a5 {[%clk 0:02:21.9]} 17... Rac8 {[%clk 0:02:35.8]} 18.
Rd2 {[%clk 0:02:11.4]} 18... Nc5 {[%clk 0:02:34.3]} 19. Rad1 {[%clk 0:02:09]}
19... Rfd8 {[%clk 0:02:25.8]} 20. Nc1 {[%clk 0:02:08.1]} 20... Nxb3 {[%clk
0:02:24.1]} 21. Ncxb3 {[%clk 0:02:06.5]} 21... Nd5 {[%clk 0:02:22.1]} 22. Bf2
{[%clk 0:02:05.3]} 22... Bg5 {[%clk 0:02:18.4]} 23. Re2 {[%clk 0:02:00]} 23...
e5 {[%clk 0:02:02.6]} 24. Rxe5 {[%clk 0:01:52.9]} 24... Bf6 {[%clk 0:02:02.2]}
25. Ree1 {[%clk 0:01:52.8]} 25... Nf4 {[%clk 0:01:56.9]} 26. Bg3 {[%clk
0:01:42.1]} 26... Nd5 {[%clk 0:01:52.7]} 27. Re2 {[%clk 0:01:28.5]} 27... h5
{[%clk 0:01:50.9]} 28. h4 {[%clk 0:01:25.8]} 28... g5 {[%clk 0:01:44.7]} 29.
hxg5 {[%clk 0:01:22.7]} 29... Bxg5 {[%clk 0:01:44.9]} 30. Bf2 {[%clk 0:01:21.8]}
30... h4 {[%clk 0:01:37.2]} 31. Nf5 {[%clk 0:01:15.4]} 31... Nf4 {[%clk
0:01:32.3]} 32. Rxd8+ {[%clk 0:01:13.3]} 32... Rxd8 {[%clk 0:01:32.1]} 33. Re1
{[%clk 0:01:08.4]} 33... h3 {[%clk 0:01:19.1]} 34. Bh4 {[%clk 0:00:43.6]} 34...
Bxh4 {[%clk 0:01:00.1]} 35. Nxh4 {[%clk 0:00:43.3]} 35... hxg2 {[%clk
0:00:56.3]} 36. Nxg2 {[%clk 0:00:42.6]} 36... Nh3+ {[%clk 0:00:46.6]} 37. Kh2
{[%clk 0:00:42.4]} 37... Ng5 {[%clk 0:00:46.2]} 38. Nh4 {[%clk 0:00:42.4]} 38...
Nxf3+ {[%clk 0:00:46.1]} 39. Nxf3 {[%clk 0:00:42.1]} 39... Bxf3 {[%clk 0:00:47]}
40. Kg3 {[%clk 0:00:38.5]} 40... Bc6 {[%clk 0:00:42.1]} 41. Re5 {[%clk
0:00:35.5]} 41... Ba4 {[%clk 0:00:39.4]} 42. Nc5 {[%clk 0:00:32.1]} 42... Bb5
{[%clk 0:00:34.6]} 43. Re4 {[%clk 0:00:26.5]} 43... Rc8 {[%clk 0:00:34.3]} 44.
Nb7 {[%clk 0:00:23.4]} 44... Rxc2 {[%clk 0:00:34]} 45. Rxb4 {[%clk 0:00:23.3]}
45... Kg7 {[%clk 0:00:34]} 46. Nd6 {[%clk 0:00:22.6]} 46... Bf1 {[%clk
0:00:32.7]} 47. Rb6 {[%clk 0:00:21]} 47... Rg2+ {[%clk 0:00:32]} 48. Kf3 {[%clk
0:00:20.6]} 48... Rc2 {[%clk 0:00:27]} 49. Nf5+ {[%clk 0:00:20.1]} 49... Kh7
{[%clk 0:00:25.4]} 50. Ne3 {[%clk 0:00:19.7]} 50... Rc1 {[%clk 0:00:23.8]} 51.
Nxf1 {[%clk 0:00:19.5]} 51... Rxf1+ {[%clk 0:00:23.7]} 52. Ke2 {[%clk
0:00:16.6]} 52... Rb1 {[%clk 0:00:23.6]} 53. Kd2 {[%clk 0:00:16.6]} 53... f5
{[%clk 0:00:23.7]} 54. Kc2 {[%clk 0:00:16.7]} 54... Ra1 {[%clk 0:00:23.1]} 55.
Rxa6 {[%clk 0:00:16.3]} 55... Kg7 {[%clk 0:00:20.8]} 56. b4 {[%clk 0:00:15.5]}
56... f4 {[%clk 0:00:21.1]} 57. Kd2 {[%clk 0:00:14.2]} 57... Ra4 {[%clk
0:00:20.2]} 58. Rb6 {[%clk 0:00:13.3]} 58... Ra3 {[%clk 0:00:19.8]} 59. Ke2
{[%clk 0:00:13.4]} 59... f3+ {[%clk 0:00:20]} 60. Kf2 {[%clk 0:00:13.5]} 60...
Kf7 {[%clk 0:00:20.6]} 61. a6 {[%clk 0:00:13.6]} 61... Ke7 {[%clk 0:00:20.2]}
62. b5 {[%clk 0:00:13.8]} 62... Kd7 {[%clk 0:00:20.1]} 63. Rb7+ {[%clk
0:00:13.6]} 63... Kc8 {[%clk 0:00:19.7]} 64. Kg3 {[%clk 0:00:13.6]} 64... Kd8
{[%clk 0:00:17.7]} 65. a7 {[%clk 0:00:13]} 65... Kc8 {[%clk 0:00:17.5]} 66. Rb8+
{[%clk 0:00:13.2]} 1-0

[Event "*** SCC Grand Prix: Titled Tuesday Blitz"]
[Site "Chess.com"]
[Date "2020.06.02"]
[Round "3"]
[White "bugbug01052018"]
[Black "UCantHandleDenker"]
[Result "0-1"]
[WhiteElo "2204"]
[BlackElo "2472"]
[TimeControl "180+1"]
[EndTime "10:30:01 PDT"]
[Termination "UCantHandleDenker won by resignation"]

1. d4 {[%clk 0:03:00.9]} 1... Nf6 {[%clk 0:02:58.8]} 2. c4 {[%clk 0:02:58.4]}
2... d6 {[%clk 0:02:58.9]} 3. Nf3 {[%clk 0:02:55.9]} 3... Nbd7 {[%clk
0:02:58.6]} 4. g3 {[%clk 0:02:55.9]} 4... e5 {[%clk 0:02:58]} 5. Bg2 {[%clk
0:02:52.4]} 5... Be7 {[%clk 0:02:57.4]} 6. O-O {[%clk 0:02:52.3]} 6... O-O
{[%clk 0:02:56.9]} 7. Nc3 {[%clk 0:02:52.5]} 7... c6 {[%clk 0:02:56.6]} 8. e4
{[%clk 0:02:49.4]} 8... a6 {[%clk 0:02:56]} 9. h3 {[%clk 0:02:49.2]} 9... Re8
{[%clk 0:02:51.7]} 10. Re1 {[%clk 0:02:48.2]} 10... Bf8 {[%clk 0:02:50.5]} 11.
b3 {[%clk 0:02:45.6]} 11... b5 {[%clk 0:02:49]} 12. Bb2 {[%clk 0:02:45.6]} 12...
Qb6 {[%clk 0:02:46]} 13. Rb1 {[%clk 0:02:41.1]} 13... Bb7 {[%clk 0:02:35.5]} 14.
Ba1 {[%clk 0:02:38.6]} 14... exd4 {[%clk 0:02:30.7]} 15. Nxd4 {[%clk 0:02:35.2]}
15... g6 {[%clk 0:02:30.1]} 16. cxb5 {[%clk 0:02:33]} 16... axb5 {[%clk
0:02:28.2]} 17. Qd2 {[%clk 0:02:17.3]} 17... Bg7 {[%clk 0:02:16.4]} 18. Nc2
{[%clk 0:02:01.2]} 18... Rad8 {[%clk 0:02:12.7]} 19. Rbd1 {[%clk 0:01:44.5]}
19... Nc5 {[%clk 0:01:43.3]} 20. b4 {[%clk 0:01:38.8]} 20... Ne6 {[%clk
0:01:37.5]} 21. Kh2 {[%clk 0:01:24.4]} 21... h5 {[%clk 0:01:34.9]} 22. Ne2
{[%clk 0:01:09.9]} 22... Qxf2 {[%clk 0:01:29.7]} 23. Rf1 {[%clk 0:01:05.1]}
23... Nxe4 {[%clk 0:01:14.1]} 24. Rxf2 {[%clk 0:01:04.4]} 24... Nxd2 {[%clk
0:01:13.8]} 25. Bxg7 {[%clk 0:01:04.5]} 25... Kxg7 {[%clk 0:01:12.3]} 26. Rxd2
{[%clk 0:01:04.5]} 26... Ng5 {[%clk 0:00:53]} 27. Rf4 {[%clk 0:01:00.8]} 27...
d5 {[%clk 0:00:46.8]} 28. h4 {[%clk 0:00:51.7]} 28... Ne6 {[%clk 0:00:45]} 29.
Rf2 {[%clk 0:00:49.8]} 29... Ra8 {[%clk 0:00:33.2]} 30. Ncd4 {[%clk 0:00:46.8]}
30... Nxd4 {[%clk 0:00:25.6]} 31. Nxd4 {[%clk 0:00:45.9]} 31... Re3 {[%clk
0:00:26.5]} 32. Nb3 {[%clk 0:00:38.2]} 32... Bc8 {[%clk 0:00:22.2]} 33. Na5
{[%clk 0:00:30.1]} 33... Bd7 {[%clk 0:00:21.4]} 34. Nb7 {[%clk 0:00:21.3]} 34...
Raa3 {[%clk 0:00:19.3]} 35. Nd6 {[%clk 0:00:17.6]} 35... f6 {[%clk 0:00:16]} 36.
Nxb5 {[%clk 0:00:08.8]} 36... cxb5 {[%clk 0:00:15]} 37. Bxd5 {[%clk 0:00:08.2]}
37... Rxg3 {[%clk 0:00:12.9]} 38. Bg2 {[%clk 0:00:08.3]} 38... Bf5 {[%clk
0:00:11.1]} 39. Rd8 {[%clk 0:00:07.2]} 39... Rg4 {[%clk 0:00:10.3]} 40. Re2
{[%clk 0:00:04.7]} 40... Rxh4+ {[%clk 0:00:09.5]} 41. Kg1 {[%clk 0:00:05.3]}
41... Rxb4 {[%clk 0:00:09.9]} 42. Re7+ {[%clk 0:00:04.8]} 42... Kh6 {[%clk
0:00:10.3]} 43. Rh8+ {[%clk 0:00:04]} 43... Kg5 {[%clk 0:00:10]} 44. Re2 {[%clk
0:00:04.4]} 44... Rb1+ {[%clk 0:00:08.5]} 45. Kf2 {[%clk 0:00:04.7]} 45... Rb4
{[%clk 0:00:08.3]} 46. Rd8 {[%clk 0:00:04]} 46... Rf4+ {[%clk 0:00:08.6]} 47.
Kg1 {[%clk 0:00:04.7]} 47... Rg3 {[%clk 0:00:08.7]} 48. Kh2 {[%clk 0:00:04.8]}
48... h4 {[%clk 0:00:07.3]} 49. Rd6 {[%clk 0:00:04.6]} 49... Rc3 {[%clk
0:00:06.2]} 50. Red2 {[%clk 0:00:04.6]} 50... h3 {[%clk 0:00:06]} 51. Bh1 {[%clk
0:00:03.7]} 51... Be4 {[%clk 0:00:02.9]} 52. Bxe4 {[%clk 0:00:01.5]} 52... Rxe4
{[%clk 0:00:02.8]} 53. R6d5+ {[%clk 0:00:02.4]} 53... f5 {[%clk 0:00:02.7]} 54.
R5d3 {[%clk 0:00:03.3]} 54... Rxd3 {[%clk 0:00:02.4]} 55. Rxd3 {[%clk
0:00:03.6]} 55... Re2+ {[%clk 0:00:02.5]} 56. Kxh3 {[%clk 0:00:04.1]} 56... Rxa2
{[%clk 0:00:03.2]} 57. Rb3 {[%clk 0:00:04.1]} 57... Ra5 {[%clk 0:00:01.2]} 58.
Rb4 {[%clk 0:00:04.2]} 58... Kf6 {[%clk 0:00:01.7]} 59. Kg3 {[%clk 0:00:04.4]}
59... Ra3+ {[%clk 0:00:02.6]} 60. Kf4 {[%clk 0:00:04.5]} 60... Ra5 {[%clk
0:00:03.5]} 61. Kf3 {[%clk 0:00:04.6]} 61... Ra4 {[%clk 0:00:04.4]} 62. Kf2
{[%clk 0:00:05.2]} 62... Ra3 {[%clk 0:00:04.9]} 0-1

[Event "*** SCC Grand Prix: Titled Tuesday Blitz"]
[Site "Chess.com"]
[Date "2020.06.02"]
[Round "3"]
[White "Konovalova_Vera"]
[Black "kuba2006"]
[Result "0-1"]
[WhiteElo "2162"]
[BlackElo "2409"]
[TimeControl "180+1"]
[EndTime "10:30:03 PDT"]
[Termination "kuba2006 won by resignation"]

1. d4 {[%clk 0:03:00.9]} 1... Nf6 {[%clk 0:03:00.9]} 2. Bg5 {[%clk 0:03:00.3]}
2... d5 {[%clk 0:02:58.8]} 3. Bxf6 {[%clk 0:02:57.2]} 3... exf6 {[%clk 0:02:59]}
4. e3 {[%clk 0:02:57.2]} 4... Bd6 {[%clk 0:02:53.7]} 5. Nf3 {[%clk 0:02:56.7]}
5... O-O {[%clk 0:02:53]} 6. Bd3 {[%clk 0:02:56.3]} 6... g6 {[%clk 0:02:50]} 7.
Nbd2 {[%clk 0:02:55.5]} 7... c6 {[%clk 0:02:46.7]} 8. O-O {[%clk 0:02:54.5]}
8... Bg4 {[%clk 0:02:41.7]} 9. h3 {[%clk 0:02:52.4]} 9... Bxf3 {[%clk
0:02:41.9]} 10. Nxf3 {[%clk 0:02:49.7]} 10... Nd7 {[%clk 0:02:41.9]} 11. c4
{[%clk 0:02:46.3]} 11... f5 {[%clk 0:02:40]} 12. Qb3 {[%clk 0:02:40.1]} 12...
dxc4 {[%clk 0:02:25.5]} 13. Bxc4 {[%clk 0:02:36.5]} 13... b5 {[%clk 0:02:25.4]}
14. Be2 {[%clk 0:02:28.6]} 14... a6 {[%clk 0:02:13.7]} 15. Rac1 {[%clk
0:02:26.3]} 15... Rc8 {[%clk 0:02:09.8]} 16. Rfd1 {[%clk 0:02:23]} 16... Nf6
{[%clk 0:02:05.5]} 17. Ne5 {[%clk 0:02:18.3]} 17... Qe8 {[%clk 0:01:51.5]} 18.
Bf3 {[%clk 0:02:07.3]} 18... Bxe5 {[%clk 0:01:44.8]} 19. dxe5 {[%clk 0:02:06]}
19... Qxe5 {[%clk 0:01:45.3]} 20. Bxc6 {[%clk 0:02:05]} 20... Kg7 {[%clk
0:01:34.4]} 21. Bb7 {[%clk 0:01:59.3]} 21... Rxc1 {[%clk 0:01:31]} 22. Rxc1
{[%clk 0:01:58]} 22... a5 {[%clk 0:01:29]} 23. Bf3 {[%clk 0:01:47.5]} 23... b4
{[%clk 0:01:24.7]} 24. Qc4 {[%clk 0:01:44.5]} 24... Qxb2 {[%clk 0:01:23]} 25.
Rc2 {[%clk 0:01:40.7]} 25... Qe5 {[%clk 0:01:16.9]} 26. Qc7 {[%clk 0:01:35.2]}
26... Qa1+ {[%clk 0:00:49]} 27. Kh2 {[%clk 0:01:33.3]} 27... a4 {[%clk
0:00:48.5]} 28. Qc4 {[%clk 0:01:13.9]} 28... Qb1 {[%clk 0:00:32.9]} 29. Rc1
{[%clk 0:01:07.3]} 29... Qb2 {[%clk 0:00:26.6]} 30. Rc2 {[%clk 0:01:07]} 30...
Qe5+ {[%clk 0:00:26.3]} 31. g3 {[%clk 0:01:06.1]} 31... Rb8 {[%clk 0:00:26]} 32.
Rc1 {[%clk 0:00:55.1]} 32... b3 {[%clk 0:00:21.2]} 33. axb3 {[%clk 0:00:52.3]}
33... axb3 {[%clk 0:00:20.2]} 34. Rb1 {[%clk 0:00:50.7]} 34... b2 {[%clk
0:00:20.4]} 35. Qc2 {[%clk 0:00:48.9]} 35... Ne4 {[%clk 0:00:15]} 36. Bxe4
{[%clk 0:00:47.5]} 36... fxe4 {[%clk 0:00:15.9]} 37. Kg2 {[%clk 0:00:41.9]}
37... Kg8 {[%clk 0:00:13.4]} 38. h4 {[%clk 0:00:40.9]} 38... Rb4 {[%clk
0:00:07.1]} 39. Kh2 {[%clk 0:00:39.9]} 39... Qb5 {[%clk 0:00:05]} 40. Qc8+
{[%clk 0:00:35.8]} 40... Kg7 {[%clk 0:00:04.7]} 41. Qc3+ {[%clk 0:00:35.7]}
41... Kf8 {[%clk 0:00:02.7]} 42. Qc8+ {[%clk 0:00:34.6]} 42... Ke7 {[%clk
0:00:02.4]} 43. Qc7+ {[%clk 0:00:34]} 43... Qd7 {[%clk 0:00:02]} 44. Qc5+ {[%clk
0:00:33]} 44... Qd6 {[%clk 0:00:02.3]} 45. Qa7+ {[%clk 0:00:30.7]} 45... Kf8
{[%clk 0:00:01.7]} 46. Qa3 {[%clk 0:00:26.2]} 46... Qd2 {[%clk 0:00:01.5]} 47.
Kg2 {[%clk 0:00:24.7]} 47... Kg7 {[%clk 0:00:02.1]} 48. Qa2 {[%clk 0:00:20.4]}
48... Rb7 {[%clk 0:00:02.5]} 49. Qa4 {[%clk 0:00:11.9]} 49... Qd3 {[%clk
0:00:02]} 50. Qa2 {[%clk 0:00:10.9]} 50... Qc2 {[%clk 0:00:02.3]} 51. Kg1 {[%clk
0:00:08.4]} 51... Qb3 {[%clk 0:00:02.1]} 52. Qxb3 {[%clk 0:00:07.3]} 52... Rxb3
{[%clk 0:00:01.8]} 53. Kf1 {[%clk 0:00:07.3]} 53... Kf6 {[%clk 0:00:02.2]} 54.
Ke2 {[%clk 0:00:07.7]} 54... Kf5 {[%clk 0:00:02.8]} 55. Kd2 {[%clk 0:00:06.7]}
55... Kg4 {[%clk 0:00:03.4]} 56. Ke2 {[%clk 0:00:06.9]} 56... Rb6 {[%clk
0:00:03.6]} 57. Kf1 {[%clk 0:00:06.5]} 57... Kf3 {[%clk 0:00:03.9]} 58. Kg1
{[%clk 0:00:06.3]} 58... Ke2 {[%clk 0:00:04.2]} 59. Kg2 {[%clk 0:00:06.2]} 59...
Kd2 {[%clk 0:00:04.8]} 60. f3 {[%clk 0:00:06]} 60... Kc2 {[%clk 0:00:05.4]} 0-1

[Event "*** SCC Grand Prix: Titled Tuesday Blitz"]
[Site "Chess.com"]
[Date "2020.06.02"]
[Round "3"]
[White "Leonid_Starozhilov"]
[Black "sunofadawn"]
[Result "1-0"]
[WhiteElo "2724"]
[BlackElo "2361"]
[TimeControl "180+1"]
[EndTime "10:30:07 PDT"]
[Termination "Leonid_Starozhilov won by checkmate"]

1. e4 {[%clk 0:03:00.9]} 1... e5 {[%clk 0:02:59.9]} 2. Nf3 {[%clk 0:03:00.9]}
2... Nc6 {[%clk 0:03:00.5]} 3. Bc4 {[%clk 0:03:00.8]} 3... Bc5 {[%clk
0:03:00.2]} 4. d3 {[%clk 0:02:59.7]} 4... Nf6 {[%clk 0:03:00.4]} 5. Nc3 {[%clk
0:02:56.1]} 5... a6 {[%clk 0:02:58.4]} 6. Be3 {[%clk 0:02:55.4]} 6... Bxe3
{[%clk 0:02:55.5]} 7. fxe3 {[%clk 0:02:56.3]} 7... d6 {[%clk 0:02:56.1]} 8. O-O
{[%clk 0:02:55.1]} 8... Be6 {[%clk 0:02:56]} 9. Bb3 {[%clk 0:02:54.8]} 9... O-O
{[%clk 0:02:55.7]} 10. Qd2 {[%clk 0:02:48.1]} 10... Qd7 {[%clk 0:02:47.3]} 11.
h3 {[%clk 0:02:44.9]} 11... Rad8 {[%clk 0:02:44]} 12. Bd5 {[%clk 0:02:32.4]}
12... Bxd5 {[%clk 0:02:34.9]} 13. exd5 {[%clk 0:02:30.6]} 13... Ne7 {[%clk
0:02:34.9]} 14. e4 {[%clk 0:02:29.6]} 14... Ng6 {[%clk 0:02:27.2]} 15. Rf2
{[%clk 0:02:16.8]} 15... h6 {[%clk 0:02:26.4]} 16. Raf1 {[%clk 0:02:16.2]} 16...
Nh5 {[%clk 0:02:25.7]} 17. Ne2 {[%clk 0:02:06.8]} 17... Rde8 {[%clk 0:02:06.8]}
18. Nh2 {[%clk 0:02:03]} 18... Nhf4 {[%clk 0:01:59.4]} 19. Ng3 {[%clk
0:01:51.6]} 19... Nh4 {[%clk 0:01:57.5]} 20. Nf3 {[%clk 0:01:39.8]} 20... Nhxg2
{[%clk 0:01:43]} 21. Rxg2 {[%clk 0:01:39]} 21... Qxh3 {[%clk 0:01:43]} 22. Nf5
{[%clk 0:01:25.3]} 22... Qxg2+ {[%clk 0:01:36.2]} 23. Qxg2 {[%clk 0:01:26.2]}
23... Nxg2 {[%clk 0:01:37.1]} 24. Kxg2 {[%clk 0:01:26.6]} 24... Kh7 {[%clk
0:01:32.8]} 25. Rh1 {[%clk 0:01:26.6]} 25... Rh8 {[%clk 0:01:29.8]} 26. Kf2
{[%clk 0:01:15.2]} 26... Kg8 {[%clk 0:01:27.5]} 27. Ke3 {[%clk 0:01:05]} 27...
h5 {[%clk 0:01:27]} 28. c4 {[%clk 0:00:53.4]} 28... g6 {[%clk 0:01:27]} 29. N5h4
{[%clk 0:00:52.4]} 29... Kg7 {[%clk 0:01:27.1]} 30. Rg1 {[%clk 0:00:52.7]} 30...
c5 {[%clk 0:01:19.2]} 31. dxc6 {[%clk 0:00:42.4]} 31... bxc6 {[%clk 0:01:19.4]}
32. Nf5+ {[%clk 0:00:42.7]} 32... Kf6 {[%clk 0:01:19.8]} 33. Nxd6 {[%clk
0:00:43.5]} 33... Rb8 {[%clk 0:01:19.4]} 34. b3 {[%clk 0:00:41.3]} 34... c5
{[%clk 0:01:14.7]} 35. Ng5 {[%clk 0:00:38.4]} 35... h4 {[%clk 0:00:49.9]} 36.
Ndxf7 {[%clk 0:00:30.9]} 36... Rh5 {[%clk 0:00:46.4]} 37. Rf1+ {[%clk
0:00:30.2]} 37... Kg7 {[%clk 0:00:37.9]} 38. Ne6+ {[%clk 0:00:30.1]} 38... Kg8
{[%clk 0:00:32.8]} 39. Nfg5 {[%clk 0:00:24.9]} 39... h3 {[%clk 0:00:30.4]} 40.
Rh1 {[%clk 0:00:20.1]} 40... h2 {[%clk 0:00:29.5]} 41. Nf3 {[%clk 0:00:19.8]}
41... Rc8 {[%clk 0:00:24.4]} 42. Rxh2 {[%clk 0:00:18]} 42... Rxh2 {[%clk
0:00:21.1]} 43. Nxh2 {[%clk 0:00:18.9]} 43... Kf7 {[%clk 0:00:20.7]} 44. Ng5+
{[%clk 0:00:19.2]} 44... Kf6 {[%clk 0:00:21.2]} 45. Ngf3 {[%clk 0:00:19.1]}
45... Ke6 {[%clk 0:00:19.5]} 46. Ng4 {[%clk 0:00:19.4]} 46... Rh8 {[%clk
0:00:19.4]} 47. Ngxe5 {[%clk 0:00:18.9]} 47... g5 {[%clk 0:00:19]} 48. Ng4
{[%clk 0:00:13.2]} 48... Rh3 {[%clk 0:00:17.9]} 49. Kf2 {[%clk 0:00:10.9]} 49...
Rh5 {[%clk 0:00:15.8]} 50. a3 {[%clk 0:00:10.5]} 50... a5 {[%clk 0:00:15.7]} 51.
d4 {[%clk 0:00:10.2]} 51... cxd4 {[%clk 0:00:15.2]} 52. Nxd4+ {[%clk 0:00:11.1]}
52... Kd6 {[%clk 0:00:15.8]} 53. Nf3 {[%clk 0:00:10.6]} 53... a4 {[%clk
0:00:14.5]} 54. bxa4 {[%clk 0:00:09.8]} 54... Kc5 {[%clk 0:00:14.1]} 55. e5
{[%clk 0:00:09]} 55... Kxc4 {[%clk 0:00:13.5]} 56. e6 {[%clk 0:00:09.4]} 56...
Rh6 {[%clk 0:00:13.4]} 57. Nxh6 {[%clk 0:00:09]} 57... g4 {[%clk 0:00:13.9]} 58.
Ng5 {[%clk 0:00:09.8]} 58... g3+ {[%clk 0:00:13.3]} 59. Kxg3 {[%clk 0:00:10.7]}
59... Kb3 {[%clk 0:00:14.1]} 60. e7 {[%clk 0:00:11.1]} 60... Kxa4 {[%clk
0:00:15]} 61. Nh7 {[%clk 0:00:11.5]} 61... Kxa3 {[%clk 0:00:15.9]} 62. e8=Q
{[%clk 0:00:12]} 62... Kb4 {[%clk 0:00:16.8]} 63. Qc8 {[%clk 0:00:12.7]} 63...
Kb5 {[%clk 0:00:17]} 64. Kf4 {[%clk 0:00:13.6]} 64... Kb6 {[%clk 0:00:17.9]} 65.
Ke5 {[%clk 0:00:14.4]} 65... Kb5 {[%clk 0:00:18.8]} 66. Kd5 {[%clk 0:00:15]}
66... Kb6 {[%clk 0:00:19.7]} 67. Qc5+ {[%clk 0:00:15.3]} 67... Ka6 {[%clk
0:00:19.4]} 68. Qb4 {[%clk 0:00:15.3]} 68... Ka7 {[%clk 0:00:19.4]} 69. Kc6
{[%clk 0:00:16.2]} 69... Ka8 {[%clk 0:00:19.7]} 70. Qb7# {[%clk 0:00:16.4]} 1-0